fUSD/lending_fUSD_20250623
["ID","MTS","AMOUNT","RATE_DAILY","PERIOD"]
[367108635,1750662656050,-3451.15,0.00027397,3]
[367108636,1750662656062,-1389.7,0.00027397,3]
[367108637,1750662656073,-490.0,0.00027397,3]
[367108638,1750662656084,-490.0,0.00027397,3]
[367108639,1750662656095,-335.47985413,0.00027397,3]
[367108640,1750662656106,-490.0,0.00027397,3]
[367108641,1750662656117,-490.0,0.00027397,3]
[367108642,1750662656128,-490.0,0.00027397,3]
[367108643,1750662656137,-490.0,0.00027397,3]
[367108644,1750662656148,-1000.0,0.00027397,3]
[367108645,1750662656159,-490.0,0.00027397,3]
[367108646,1750662656170,-490.0,0.00027397,3]
[367108647,1750662656181,-490.0,0.00027397,3]
[367108648,1750662656191,-2416.24,0.00027397,3]
[367108649,1750662656201,-490.0,0.00027397,3]
[367108650,1750662656212,-490.0,0.00027397,3]
[367108651,1750662656223,-490.0,0.00027397,3]
[367108652,1750662656234,-490.0,0.00027397,3]
[367108653,1750662656245,-566.41,0.00027397,3]
[367108654,1750662656255,-11090.94,0.00027397,3]
[367108655,1750662656273,-490.0,0.00027397,3]
[367108656,1750662656283,-1221.42,0.00027397,3]
[367108657,1750662656294,-1799.28,0.00027397,3]
[367108658,1750662656305,-490.0,0.00027397,3]
[367108659,1750662656317,-2070.18,0.00027397,3]
[367108660,1750662656328,-1701.67,0.00027397,3]
[367108661,1750662656340,-452.02120147,0.00027397,3]
[367108662,1750662656351,-1378.47,0.00027397,3]
[367108663,1750662656362,-1087.15,0.00027397,3]
[367108664,1750662656373,-490.0,0.00027397,3]
[367108665,1750662656384,-1736.17,0.00027397,3]
[367108666,1750662656394,-1351.61,0.00027397,3]
[367108667,1750662656405,-490.0,0.00027397,3]
[367108668,1750662656416,-1816.97,0.00027397,3]
[367108669,1750662656427,-490.0,0.00027397,3]
[367108670,1750662656438,-709.09,0.00027397,3]
[367108671,1750662656448,-490.0,0.00027397,3]
[367108672,1750662656459,-1834.95,0.00027397,3]
[367108673,1750662656470,-490.0,0.00027397,3]
[367108674,1750662656480,-1672.0,0.00027397,3]
[367108675,1750662656491,-1571.12,0.00027397,3]
[367108676,1750662656503,-490.0,0.00027397,3]
[367108677,1750662656517,-4884.01,0.00027397,3]
[367108678,1750662656527,-490.0,0.00027397,3]
[367108679,1750662656538,-1729.07,0.00027397,3]
[367108680,1750662656548,-490.0,0.00027397,3]
[367108681,1750662656559,-8073.75,0.00027397,3]
[367108682,1750662656569,-1652.26,0.00027397,3]
[367108683,1750662656579,-490.0,0.00027397,3]
[367108684,1750662656589,-490.0,0.00027397,3]
[367108685,1750662656601,-718.8,0.00027397,3]
[367108686,1750662656611,-490.0,0.00027397,3]
[367108687,1750662656622,-867.32,0.00027397,3]
[367108688,1750662656633,-490.0,0.00027397,3]
[367108689,1750662656643,-30050.84,0.00027397,3]
[367108690,1750662656656,-490.0,0.00027397,3]
[367108691,1750662656668,-1869.9,0.00027397,3]
[367108692,1750662656678,-1482.76,0.00027397,3]
[367108693,1750662656688,-1513.2,0.00027397,3]
[367108694,1750662656698,-490.0,0.00027397,3]
[367108695,1750662656708,-490.0,0.00027397,3]
[367108696,1750662656718,-490.0,0.00027397,3]
[367108697,1750662656728,-1291.21,0.00027397,3]
[367108698,1750662656739,-437.9359668,0.00027397,3]
[367108699,1750662656752,-825.47,0.00027397,3]
[367108700,1750662656763,-490.0,0.00027397,3]
[367108701,1750662656773,-490.0,0.00027397,3]
[367108702,1750662656785,-490.0,0.00027397,3]
[367108703,1750662656796,-332.74935112,0.00027397,3]
[367108704,1750662656807,-529.57,0.00027397,3]
[367108705,1750662656818,-1000.93,0.00027397,3]
[367108706,1750662656829,-1013.98,0.00027397,2]
[367108707,1750662656839,-490.0,0.00027397,3]
[367108708,1750662656849,-749.71,0.00027397,3]
[367108709,1750662656860,-2626.45,0.00027397,3]
[367108710,1750662656870,-1301.95,0.00027397,3]
[367108711,1750662656881,-1553.91,0.00027397,3]
[367108712,1750662656891,-914.97,0.00027397,3]
[367108713,1750662656902,-733.17,0.00027397,3]
[367108714,1750662656912,-5331.91,0.00027397,3]
[367108715,1750662656923,-490.0,0.00027397,3]
[367108716,1750662656935,-6188.74,0.00027397,3]
[367108717,1750662656947,-2204.74,0.00027397,3]
[367108718,1750662657832,-742.07,0.00027397,3]
[367108719,1750662657853,-866.05,0.00027397,3]
[367108720,1750662657878,-1201.89,0.00027397,3]
[367108721,1750662657904,-5637.09,0.00027397,3]
[367108722,1750662657914,-362.44527131,0.00027397,3]
[367108723,1750662657923,-716.87,0.00027397,3]
[367108724,1750662657933,-490.0,0.00027397,3]
[367108725,1750662657943,-490.0,0.00027397,3]
[367108726,1750662657952,-490.0,0.00027397,3]
[367108727,1750662657962,-2465.19,0.00027397,3]
[367108728,1750662657971,-1651.87,0.00027397,3]
[367108729,1750662657982,-1607.85,0.00027397,3]
[367108730,1750662657991,-490.0,0.00027397,3]
[367108731,1750662658001,-500.0,0.00027397,3]
[367108732,1750662658010,-1906.99,0.00027397,3]
[367108733,1750662658020,-424.69439053,0.00027397,3]
[367108734,1750662658029,-572.05,0.00027397,3]
[367108735,1750662658038,-1536.26,0.00027397,3]
[367108736,1750662658048,-1920.56,0.00027397,3]
[367108737,1750662658057,-2965.58,0.00027397,3]
[367108738,1750662658067,-1131.73,0.00027397,3]
[367108739,1750662658076,-764.72,0.00027397,3]
[367108740,1750662658085,-3001.5,0.00027397,3]
[367108741,1750662658095,-594.04,0.00027397,3]
[367108742,1750662658104,-490.0,0.00027397,3]
[367108743,1750662658113,-490.0,0.00027397,3]
[367108744,1750662658123,-490.0,0.00027397,3]
[367108745,1750662658133,-1385.46,0.00027397,3]
[367108746,1750662658143,-1205.8,0.00027397,3]
[367108747,1750662658152,-500.0,0.00027397,3]
[367108748,1750662658162,-490.0,0.00027397,3]
[367108749,1750662658172,-500.0,0.00027397,3]
[367108750,1750662658181,-598.09831769,0.00027397,3]
[367108751,1750662658191,-1261.87,0.00027397,3]
[367108752,1750662658201,-759.47,0.00027397,3]
[367108753,1750662658210,-490.0,0.00027397,2]
[367108754,1750662658219,-954.78,0.00027397,3]
[367108755,1750662658229,-490.0,0.00027397,3]
[367108756,1750662658239,-490.0,0.00027397,3]
[367108757,1750662658248,-502.95,0.00027397,2]
[367108758,1750662658258,-150.19,0.00027397,2]
[367108759,1750662658267,-300.0,0.00027397,2]
[367108760,1750662658277,-5434.37,0.00027397,2]
[367108761,1750662658286,-160.02,0.00027397,80]
[367108762,1750662658296,-640.74394,0.0002744,2]
[367108763,1750662658306,-752.313973,0.00027466,8]
[367108764,1750662658315,-339.22393956,0.00027486,2]
[367108765,1750662658324,-1000.0,0.00027521,5]
[367108766,1750662658334,-500.0,0.00027521,5]
[367108767,1750662658343,-500.0,0.00027572,3]
[367108768,1750662658354,-594.02,0.00027572,3]
[367108769,1750662658363,-28053.13211093,0.00027609,2]
[367108770,1750662658372,-44058.2402197,0.00027609,2]
[367108771,1750662658382,-500.0,0.0002767,3]
[367108772,1750662658391,-500.0,0.0002767,3]
[367108773,1750662658401,-592.12588245,0.0002767,3]
[367108774,1750662658410,-500.0,0.0002767,3]
[367108775,1750662658419,-500.0,0.0002767,3]
[367108776,1750662658429,-500.0,0.0002767,3]
[367108777,1750662658438,-500.0,0.0002767,3]
[367108778,1750662658447,-500.0,0.0002767,3]
[367108779,1750662658456,-353.94,0.0002767,3]
[367108780,1750662658465,-500.0,0.0002767,3]
[367108781,1750662658474,-500.0,0.0002767,3]
[367108782,1750662658484,-500.0,0.0002767,3]
[367108783,1750662658493,-500.0,0.0002767,3]
[367108784,1750662658502,-401.26,0.0002767,3]
[367108785,1750662658513,-5455.753665,0.00027671,3]
[367108786,1750662658523,-490.0,0.00027671,3]
[367108787,1750662658534,-490.0,0.00027671,3]
[367108788,1750662658543,-490.0,0.00027671,3]
[367108789,1750662658553,-490.0,0.00027671,3]
[367108790,1750662658563,-490.0,0.00027671,3]
[367108791,1750662658573,-490.0,0.00027671,3]
[367108792,1750662658584,-490.0,0.00027671,3]
[367108793,1750662658595,-906.91,0.00027671,3]
[367108794,1750662658606,-530.6302683,0.00027671,3]
[367108795,1750662658616,-490.0,0.00027671,3]
[367108796,1750662658626,-385.21,0.00027671,3]
[367108797,1750662658635,-490.0,0.00027671,3]
[367108798,1750662658643,-490.0,0.00027671,3]
[367108799,1750662658651,-733.39,0.00027671,3]
[367108800,1750662658660,-490.0,0.00027671,3]
[367108801,1750662658668,-490.0,0.00027671,3]
[367108802,1750662658678,-490.0,0.00027671,3]
[367108803,1750662658687,-490.0,0.00027671,3]
[367108804,1750662658697,-252.921479,0.00027671,3]
[367108805,1750662658706,-490.0,0.00027671,3]
[367108806,1750662658715,-233.37205505,0.00027671,3]
[367108807,1750662658724,-363.49631869,0.00027671,3]
[367108808,1750662658733,-490.0,0.00027671,3]
[367108809,1750662658742,-958.78,0.00027671,3]
[367108810,1750662658752,-221.15763724,0.00027671,3]
[367108811,1750662658761,-582.39901821,0.00027671,3]
[367108812,1750662658770,-972.11,0.00027671,3]
[367108813,1750662658779,-500.03412592,0.00027671,3]
[367108814,1750662658789,-612.16761749,0.00027671,3]
[367108815,1750662658798,-492.90567872,0.00027671,3]
[367108816,1750662658808,-490.0,0.00027671,3]
[367108817,1750662658817,-490.0,0.00027671,3]
[367108818,1750662658826,-497.3195658,0.00027671,3]
[367108819,1750662658838,-630.0,0.00027671,3]
[367108820,1750662658848,-2591.829598,0.00027671,3]
[367108821,1750662658857,-615.11,0.00027671,3]
[367108822,1750662658866,-804.23,0.00027671,3]
[367108823,1750662658876,-490.0,0.00027671,3]
[367108824,1750662658885,-490.0,0.00027671,3]
[367108825,1750662658896,-490.0,0.00027671,3]
[367108826,1750662658907,-490.0,0.00027671,3]
[367108827,1750662658918,-490.0,0.00027671,3]
[367108828,1750662658928,-490.0,0.00027671,3]
[367108829,1750662658938,-490.0,0.00027671,3]
[367108830,1750662658949,-490.0,0.00027671,3]
[367108831,1750662658959,-490.0,0.00027671,3]
[367108832,1750662658969,-490.0,0.00027671,3]
[367108833,1750662658978,-490.0,0.00027671,3]
[367108834,1750662658987,-490.0,0.00027671,3]
[367108835,1750662658997,-490.0,0.00027671,3]
[367108836,1750662659007,-490.0,0.00027671,3]
[367108837,1750662659017,-490.0,0.00027671,3]
[367108838,1750662659027,-490.0,0.00027671,3]
[367108839,1750662659036,-1075.31,0.00027671,3]
[367108840,1750662659046,-490.0,0.00027671,3]
[367108841,1750662659056,-262.28427075,0.00027671,3]
[367108842,1750662659067,-490.0,0.00027671,3]
[367108843,1750662659076,-811.41,0.00027671,3]
[367108844,1750662659086,-490.0,0.00027671,3]
[367108845,1750662659095,-663.45,0.00027671,3]
[367108846,1750662659104,-695.49,0.00027671,3]
[367108847,1750662659114,-490.0,0.00027671,3]
[367108848,1750662659123,-490.0,0.00027671,3]
[367108849,1750662659133,-490.0,0.00027671,3]
[367108850,1750662659142,-977.66,0.00027671,3]
[367108851,1750662659152,-490.0,0.00027671,3]
[367108852,1750662659162,-833.21,0.00027671,3]
[367108853,1750662659171,-591.25,0.00027671,3]
[367108854,1750662659181,-490.0,0.00027671,3]
[367108855,1750662659191,-490.0,0.00027671,3]
[367108856,1750662659200,-490.0,0.00027671,3]
[367108857,1750662659209,-490.0,0.00027671,3]
[367108858,1750662659219,-690.16,0.00027671,3]
[367108859,1750662659229,-490.0,0.00027671,3]
[367108860,1750662659238,-1109.36,0.00027671,3]
[367108861,1750662659247,-490.0,0.00027671,3]
[367108862,1750662659257,-490.0,0.00027671,3]
[367108863,1750662659267,-526.92,0.00027671,3]
[367108864,1750662659276,-490.0,0.00027671,3]
[367108865,1750662659286,-490.0,0.00027671,3]
[367108866,1750662659296,-490.0,0.00027671,3]
[367108867,1750662659305,-490.0,0.00027671,3]
[367108868,1750662659319,-490.0,0.00027671,3]
[367108869,1750662659328,-519.11,0.00027671,3]
[367108870,1750662659337,-490.0,0.00027671,3]
[367108871,1750662659347,-490.0,0.00027671,3]
[367108872,1750662659356,-970.12,0.00027671,3]
[367108873,1750662659366,-490.0,0.00027671,3]
[367108874,1750662659375,-1478.36,0.00027671,3]
[367108875,1750662659385,-490.0,0.00027671,3]
[367108876,1750662659395,-490.0,0.00027671,3]
[367108877,1750662659404,-490.0,0.00027671,3]
[367108878,1750662659415,-490.0,0.00027671,3]
[367108879,1750662659424,-490.0,0.00027671,3]
[367108880,1750662659434,-1376.6,0.00027671,3]
[367108881,1750662659444,-490.0,0.00027671,3]
[367108882,1750662659453,-889.62,0.00027671,3]
[367108883,1750662659463,-474.26357857,0.00027671,3]
[367108884,1750662659473,-490.0,0.00027671,3]
[367108885,1750662659482,-490.0,0.00027671,3]
[367108886,1750662659492,-1155.19,0.00027671,3]
[367108887,1750662659501,-402.39059455,0.00027671,3]
[367108888,1750662659515,-490.0,0.00027671,3]
[367108889,1750662659525,-490.0,0.00027671,3]
[367108890,1750662659534,-490.0,0.00027671,3]
[367108891,1750662659543,-495.01,0.00027671,3]
[367108892,1750662659553,-490.0,0.00027671,3]
[367108893,1750662659565,-668.52,0.00027671,3]
[367108894,1750662659575,-586.16,0.00027671,3]
[367108895,1750662659586,-490.0,0.00027671,3]
[367108896,1750662659595,-698.01,0.00027671,3]
[367108897,1750662659605,-490.0,0.00027671,3]
[367108898,1750662659615,-490.0,0.00027671,3]
[367108899,1750662659624,-490.0,0.00027671,3]
[367108900,1750662659633,-490.0,0.00027671,3]
[367108901,1750662659643,-490.0,0.00027671,3]
[367108902,1750662659652,-490.0,0.00027671,3]
[367108903,1750662659661,-644.39,0.00027671,3]
[367108904,1750662659670,-617.7,0.00027671,3]
[367108905,1750662659680,-490.0,0.00027671,3]
[367108906,1750662659689,-574.63970699,0.00027671,3]
[367108907,1750662659699,-490.0,0.00027671,3]
[367108908,1750662659709,-490.0,0.00027671,3]
[367108909,1750662659718,-826.8,0.00027671,3]
[367108910,1750662659729,-490.0,0.00027671,3]
[367108911,1750662659738,-490.0,0.00027671,3]
[367108912,1750662659748,-490.0,0.00027671,3]
[367108913,1750662659757,-490.0,0.00027671,3]
[367108914,1750662659767,-490.0,0.00027671,3]
[367108915,1750662659779,-490.0,0.00027671,3]
[367108916,1750662659789,-490.0,0.00027671,3]
[367108917,1750662659799,-490.0,0.00027671,3]
[367108918,1750662659812,-490.0,0.00027671,3]
[367108919,1750662659822,-490.0,0.00027671,3]
[367108920,1750662659833,-626.46,0.00027671,3]
[367108921,1750662659842,-490.0,0.00027671,3]
[367108922,1750662659852,-490.0,0.00027671,3]
[367108923,1750662659861,-490.0,0.00027671,3]
[367108924,1750662659870,-490.0,0.00027671,3]
[367108925,1750662659879,-490.0,0.00027671,3]
[367108926,1750662659889,-261.78383269,0.00027671,3]
[367108927,1750662659899,-490.0,0.00027671,3]
[367108928,1750662659908,-490.0,0.00027671,3]
[367108929,1750662659919,-841.55,0.00027671,3]
[367108930,1750662659929,-490.0,0.00027671,3]
[367108931,1750662659940,-625.27,0.00027671,3]
[367108932,1750662659950,-490.0,0.00027671,3]
[367108933,1750662659961,-1584.78,0.00027671,3]
[367108934,1750662659970,-490.0,0.00027671,3]
[367108935,1750662659980,-490.0,0.00027671,3]
[367108936,1750662659990,-490.0,0.00027671,3]
[367108937,1750662659999,-490.0,0.00027671,3]
[367108938,1750662660009,-490.0,0.00027671,3]
[367108939,1750662660019,-1089.25,0.00027671,3]
[367108940,1750662660029,-914.26,0.00027671,3]
[367108941,1750662660038,-777.39,0.00027671,3]
[367108942,1750662660048,-667.3,0.00027671,3]
[367108943,1750662660060,-563.6,0.00027671,3]
[367108944,1750662660071,-1172.55,0.00027671,3]
[367108945,1750662660081,-490.0,0.00027671,3]
[367108946,1750662660091,-490.0,0.00027671,3]
[367108947,1750662660100,-857.69,0.00027671,3]
[367108948,1750662660110,-601.26,0.00027671,3]
[367108949,1750662660120,-490.0,0.00027671,3]
[367108950,1750662660130,-490.0,0.00027671,3]
[367108951,1750662660209,-1486.14,0.00027671,3]
[367108952,1750662660219,-654.18,0.00027671,3]
[367108953,1750662660230,-641.56,0.00027671,3]
[367108954,1750662660242,-2328.1,0.00027671,3]
[367108955,1750662660252,-490.0,0.00027671,3]
[367108956,1750662660261,-1714.75,0.00027671,3]
[367108957,1750662660271,-490.0,0.00027671,3]
[367108958,1750662660280,-834.55,0.00027671,3]
[367108959,1750662660289,-490.0,0.00027671,3]
[367108960,1750662660300,-2984.61,0.00027671,3]
[367108961,1750662660310,-579.07,0.00027671,3]
[367108962,1750662660319,-1666.5,0.00027671,3]
[367108963,1750662660329,-490.0,0.00027671,2]
[367108964,1750662660338,-490.0,0.00027671,3]
[367108965,1750662660348,-774.87,0.00027671,3]
[367108966,1750662660357,-490.0,0.00027671,3]
[367108967,1750662660367,-198.016965,0.00027671,3]
[367108968,1750662660376,-490.0,0.00027671,3]
[367108969,1750662660386,-252.36546582,0.00027671,3]
[367108970,1750662660395,-490.0,0.00027671,3]
[367108971,1750662660405,-490.0,0.00027671,3]
[367108972,1750662660415,-523.64,0.00027671,3]
[367108973,1750662660424,-210.0,0.00027671,3]
[367108974,1750662660434,-1685.1,0.00027671,3]
[367108975,1750662660443,-490.0,0.00027671,3]
[367108976,1750662660452,-685.83,0.00027671,3]
[367108977,1750662660462,-845.32,0.00027671,3]
[367108978,1750662660472,-490.0,0.00027671,3]
[367108979,1750662660482,-490.0,0.00027671,3]
[367108980,1750662660491,-490.0,0.00027671,3]
[367108981,1750662660501,-1003.013708,0.00027671,3]
[367108982,1750662660513,-490.0,0.00027671,3]
[367108983,1750662660522,-490.0,0.00027671,3]
[367108984,1750662660532,-407.03,0.00027671,3]
[367108985,1750662660541,-490.0,0.00027671,3]
[367108986,1750662660550,-490.0,0.00027671,3]
[367108987,1750662660559,-620.28,0.00027671,3]
[367108988,1750662660569,-490.0,0.00027671,3]
[367108989,1750662660578,-692.18,0.00027671,3]
[367108990,1750662660588,-490.0,0.00027671,3]
[367108991,1750662660598,-490.0,0.00027671,3]
[367108992,1750662660607,-583.42,0.00027671,3]
[367108993,1750662660617,-1382.11,0.00027671,3]
[367108994,1750662660626,-490.0,0.00027671,3]
[367108995,1750662660636,-957.53,0.00027671,3]
[367108996,1750662660645,-1520.85,0.00027671,3]
[367108997,1750662660654,-252.44206122,0.00027671,3]
[367108998,1750662660663,-852.4,0.00027671,3]
[367108999,1750662660672,-515.5300264,0.00027671,3]
[367109000,1750662660681,-490.0,0.00027671,3]
[367109001,1750662660691,-490.0,0.00027671,3]
[367109002,1750662660701,-1514.64,0.00027671,3]
[367109003,1750662660711,-490.0,0.00027671,3]
[367109004,1750662660720,-490.0,0.00027671,3]
[367109005,1750662660729,-490.0,0.00027671,3]
[367109006,1750662660739,-490.0,0.00027671,3]
[367109007,1750662660748,-337.88612175,0.00027671,3]
[367109008,1750662660756,-564.98,0.00027671,3]
[367109009,1750662660765,-1413.76,0.00027671,3]
[367109010,1750662660774,-490.0,0.00027671,3]
[367109011,1750662660784,-490.0,0.00027671,3]
[367109012,1750662660793,-621.88,0.00027671,3]
[367109013,1750662660803,-490.0,0.00027671,3]
[367109014,1750662660813,-643.76,0.00027671,3]
[367109015,1750662660823,-1486.85,0.00027671,3]
[367109016,1750662660832,-490.0,0.00027671,3]
[367109017,1750662660841,-605.57,0.00027671,3]
[367109018,1750662660851,-490.0,0.00027671,3]
[367109019,1750662660861,-765.6,0.00027671,3]
[367109020,1750662660871,-490.0,0.00027671,3]
[367109021,1750662660880,-490.0,0.00027671,3]
[367109022,1750662660890,-635.87,0.00027671,3]
[367109023,1750662660899,-490.0,0.00027671,3]
[367109024,1750662660908,-559.87,0.00027671,3]
[367109025,1750662660919,-521.1,0.00027671,3]
[367109026,1750662660930,-748.29,0.00027671,3]
[367109027,1750662660940,-490.0,0.00027671,3]
[367109028,1750662660949,-702.32,0.00027671,3]
[367109029,1750662660959,-490.0,0.00027671,3]
[367109030,1750662660968,-490.0,0.00027671,3]
[367109031,1750662660977,-490.0,0.00027671,3]
[367109032,1750662660986,-1437.96,0.00027671,3]
[367109033,1750662660996,-933.29,0.00027671,3]
[367109034,1750662661004,-623.74,0.00027671,3]
[367109035,1750662661014,-1229.23,0.00027671,3]
[367109036,1750662661023,-490.0,0.00027671,3]
[367109037,1750662661032,-1240.62,0.00027671,3]
[367109038,1750662661042,-490.0,0.00027671,3]
[367109039,1750662661051,-490.0,0.00027671,3]
[367109040,1750662661060,-1044.91,0.00027671,3]
[367109041,1750662661070,-490.92,0.00027671,3]
[367109042,1750662661079,-636.16,0.00027671,3]
[367109043,1750662661088,-224.08253209,0.00027671,3]
[367109044,1750662661098,-490.0,0.00027671,3]
[367109045,1750662661107,-583.46,0.00027671,3]
[367109046,1750662661117,-462.24,0.00027671,3]
[367109047,1750662661126,-1648.05,0.00027671,3]
[367109048,1750662661135,-490.0,0.00027671,3]
[367109049,1750662661146,-745.48,0.00027671,3]
[367109050,1750662661155,-490.0,0.00027671,3]
[367109051,1750662661166,-1819.02,0.00027671,3]
[367109052,1750662661175,-490.0,0.00027671,3]
[367109053,1750662661185,-490.0,0.00027671,3]
[367109054,1750662661194,-1025.74,0.00027671,3]
[367109055,1750662661203,-490.0,0.00027671,3]
[367109056,1750662661212,-503.71962819,0.00027671,3]
[367109057,1750662661223,-1801.52,0.00027671,3]
[367109058,1750662661232,-507.64,0.00027671,3]
[367109059,1750662661241,-1776.13,0.00027671,3]
[367109060,1750662661251,-1449.74,0.00027671,3]
[367109061,1750662661260,-803.35,0.00027671,3]
[367109062,1750662661270,-1305.95,0.00027671,3]
[367109063,1750662661279,-490.0,0.00027671,3]
[367109064,1750662661288,-825.12,0.00027671,3]
[367109065,1750662661298,-490.0,0.00027671,3]
[367109066,1750662661307,-490.0,0.00027671,3]
[367109067,1750662661318,-553.17,0.00027671,3]
[367109068,1750662661328,-490.0,0.00027671,3]
[367109069,1750662661337,-1184.6,0.00027671,3]
[367109070,1750662661347,-490.0,0.00027671,3]
[367109071,1750662661357,-2077.31,0.00027671,3]
[367109072,1750662661366,-1017.63,0.00027671,3]
[367109073,1750662661376,-903.1,0.00027671,3]
[367109074,1750662661386,-311.57926212,0.00027671,3]
[367109075,1750662661396,-840.82,0.00027671,3]
[367109076,1750662661405,-1228.76,0.00027671,3]
[367109077,1750662661415,-972.48,0.00027671,3]
[367109078,1750662661424,-505.2092582,0.00027671,3]
[367109079,1750662661434,-509.05902097,0.00027671,3]
[367109080,1750662661443,-490.0,0.00027671,3]
[367109081,1750662661453,-490.0,0.00027671,2]
[367109082,1750662661463,-490.0,0.00027671,3]
[367109083,1750662661472,-490.0,0.00027671,3]
[367109084,1750662661482,-516.79204793,0.00027671,3]
[367109085,1750662661491,-698.82,0.00027671,3]
[367109086,1750662661502,-1683.09,0.00027671,3]
[367109087,1750662661515,-614.18,0.00027671,3]
[367109088,1750662661525,-1068.5,0.00027671,3]
[367109089,1750662661534,-899.45,0.00027671,3]
[367109090,1750662661544,-490.0,0.00027671,3]
[367109091,1750662661554,-1018.31,0.00027671,3]
[367109092,1750662661564,-490.0,0.00027671,3]
[367109093,1750662661573,-490.0,0.00027671,3]
[367109094,1750662661585,-1034.85,0.00027671,3]
[367109095,1750662661595,-490.0,0.00027671,3]
[367109096,1750662661604,-1636.32,0.00027671,3]
[367109097,1750662661613,-490.0,0.00027671,3]
[367109098,1750662661622,-636.43,0.00027671,3]
[367109099,1750662661632,-295.31736838,0.00027671,3]
[367109100,1750662661641,-514.73,0.00027671,3]
[367109101,1750662661651,-490.0,0.00027671,3]
[367109102,1750662661661,-490.0,0.00027671,3]
[367109103,1750662661670,-490.0,0.00027671,3]
[367109104,1750662661680,-1597.54,0.00027671,3]
[367109105,1750662661690,-490.0,0.00027671,3]
[367109106,1750662661699,-490.0,0.00027671,3]
[367109107,1750662661709,-490.0,0.00027671,3]
[367109108,1750662661718,-878.08,0.00027671,3]
[367109109,1750662661728,-490.0,0.00027671,3]
[367109110,1750662661738,-490.0,0.00027671,3]
[367109111,1750662661748,-490.0,0.00027671,3]
[367109112,1750662661757,-490.0,0.00027671,3]
[367109113,1750662661767,-933.44,0.00027671,3]
[367109114,1750662661776,-239.45723296,0.00027671,3]
[367109115,1750662661785,-490.0,0.00027671,3]
[367109116,1750662661794,-980.14,0.00027671,3]
[367109117,1750662661804,-1351.29,0.00027671,3]
[367109118,1750662661813,-490.0,0.00027671,3]
[367109119,1750662661823,-490.0,0.00027671,3]
[367109120,1750662661834,-490.0,0.00027671,3]
[367109121,1750662661845,-973.74,0.00027671,3]
[367109122,1750662661855,-1021.72,0.00027671,3]
[367109123,1750662661864,-490.0,0.00027671,3]
[367109124,1750662661873,-490.0,0.00027671,3]
[367109125,1750662661883,-2515.92,0.00027671,3]
[367109126,1750662661892,-563.49,0.00027671,3]
[367109127,1750662661901,-718.42,0.00027671,3]
[367109128,1750662661910,-459.65242602,0.00027671,3]
[367109129,1750662661919,-490.0,0.00027671,3]
[367109130,1750662661929,-239.25676251,0.00027671,3]
[367109131,1750662661938,-763.59,0.00027671,3]
[367109132,1750662661947,-490.0,0.00027671,3]
[367109133,1750662661957,-490.0,0.00027671,3]
[367109134,1750662661966,-490.0,0.00027671,3]